bitfinex/quotes_ETHUSD_20251010
["timestamp","ask_amount","ask_price","bid_price","bid_amount"]
[1760124759451,0.02503207,3991.8,3990.2,0.121]
[1760124759794,0.02503207,3991.8,3990.3,0.6336]
[1760124760082,0.02503207,3991.8,3989.4,0.056]
[1760124760083,4.42538658,3991.4,3988.6,0.056]
[1760124760341,30.0,3991.5,3988.6,4.005]
[1760124760342,30.0,3991.1,3988.6,4.005]
[1760124760462,11.92,3991.2,3988.7,0.02507082]
[1760124760463,1.92,3991.0,3988.7,0.02507082]
[1760124760661,1.94503207,3990.9,3988.6,4.005]
[1760124760977,11.92,3990.5,3988.6,4.005]
[1760124761161,1.92,3990.9,3988.6,4.005]
[1760124761366,18.456,3992.0,3988.8,2.50700924]
[1760124761665,1.92,3991.0,3988.9,0.02506956]
[1760124761868,1.92,3990.8,3988.7,0.1885]
[1760124762063,1.92,3990.8,3988.8,0.6336]
[1760124762250,30.0,3990.5,3988.0,6.7205]
[1760124762594,30.0,3990.5,3986.4,1.27253113]
[1760124762595,30.0,3990.1,3987.7,4.043]
[1760124762801,1.92,3989.8,3987.8,4.043]
[1760124763007,0.02503207,3989.7,3987.8,4.043]
[1760124763355,0.39299967,3989.9,3987.8,4.043]
[1760124763871,0.41803174,3989.9,3987.9,0.6336]
[1760124764071,1.92,3989.7,3987.9,0.6336]
[1760124764591,1.92,3989.3,3987.6,2.09]
[1760124764793,1.92,3989.0,3987.6,2.09]
[1760124764953,1.92,3988.7,3987.6,2.09]
[1760124765157,1.92,3988.3,3987.6,2.09]
[1760124765466,1.92,3988.0,3987.3,4.042]
[1760124765650,1.92,3988.2,3987.3,4.042]
[1760124765848,1.92,3988.0,3986.6,2.09]
[1760124766092,1.92,3987.7,3986.0,4.042]
[1760124766296,0.02503207,3987.7,3985.3,0.1325]
[1760124766465,1.92,3987.3,3985.4,0.207]
[1760124766661,30.0,3987.0,3985.0,0.207]
[1760124766907,11.92,3987.1,3985.0,0.207]
[1760124766908,5.962,3986.9,3985.0,0.207]
[1760124767198,4.042,3987.5,3985.2,2.50928435]
[1760124767351,0.2281,3988.7,3985.4,0.6336]
[1760124767352,2.599,3988.0,3985.4,0.6336]
[1760124767549,1.92,3987.8,3986.0,0.6336]
[1760124767754,2.09,3988.5,3986.2,0.6336]
[1760124767755,1.92,3988.5,3986.2,0.6336]
[1760124767972,1.92,3988.5,3984.8,2.5095219]
[1760124767973,1.92,3987.9,3985.0,0.1885]
[1760124768218,1.92,3987.5,3985.0,0.3095]
[1760124768518,2.50686448,3989.1,3985.1,0.1885]
[1760124768519,30.0,3989.1,3985.1,0.1885]
[1760124768722,30.0,3988.4,3985.2,1.5436]
[1760124769019,1.92,3988.0,3985.4,0.6336]
[1760124769217,1.92,3988.0,3984.5,0.1325]
[1760124769218,30.0,3987.7,3984.5,0.1325]
[1760124769424,30.0,3987.1,3983.6,0.1885]
[1760124769576,1.92,3986.7,3983.6,0.1885]
[1760124769914,0.39333822,3986.3,3984.1,2.50993681]
[1760124770118,0.39333822,3986.3,3984.3,0.6336]
[1760124770286,2.5196,3987.6,3984.7,0.6336]
[1760124770287,1.779,3986.8,3984.7,0.6336]
[1760124770484,0.39336549,3986.4,3984.4,10.5555]
[1760124770889,0.39336549,3986.4,3984.5,0.6336]
[1760124771288,0.39336549,3986.4,3984.6,0.02509662]
[1760124771490,0.4296,3987.4,3985.4,0.6336]
[1760124771814,0.02503207,3989.0,3985.6,3.14261408]
[1760124771815,0.66910498,3987.7,3985.6,3.14261408]
[1760124772040,0.39310498,3987.7,3985.5,6.134]
[1760124772313,0.4296,3988.8,3986.2,2.50865264]
[1760124772514,0.252,3988.9,3986.3,6.7676]
[1760124772515,0.39310083,3988.1,3986.3,6.7676]
[1760124772715,0.39310083,3988.1,3986.4,0.1885]
[1760124772878,30.0,3989.3,3986.8,0.6336]
[1760124773083,30.0,3989.1,3987.0,0.6336]
[1760124773316,0.02503207,3989.0,3987.0,0.6336]
[1760124773516,0.02503207,3989.0,3987.1,0.02508088]
[1760124773813,0.02503207,3989.3,3987.3,0.6336]
[1760124774016,0.02503207,3989.3,3987.5,0.6336]
[1760124774221,0.4296,3989.3,3987.6,4.043]
[1760124774388,30.0,3989.0,3987.6,4.043]
[1760124774711,0.4296,3989.3,3987.6,4.043]
[1760124774917,30.0,3989.0,3986.9,14.5]
[1760124775120,30.0,3989.0,3983.1,1.27253113]
[1760124775121,1.92,3988.6,3985.1,0.2135]
[1760124775420,1.92,3988.6,3983.3,2.51042727]
[1760124775421,30.0,3987.5,3985.2,4.043]
[1760124775618,0.4296,3987.7,3985.1,2.5835]
[1760124775919,0.19513207,3989.4,3985.4,2.50915842]
[1760124776119,1.92,3988.2,3985.3,3.14276521]
[1760124776332,1.92,3987.9,3985.6,0.6336]
[1760124776497,0.4296,3988.4,3985.8,0.6336]
[1760124776700,1.92,3988.0,3986.0,0.6336]
[1760124776921,1.92,3987.8,3986.0,0.6336]
[1760124777334,1.92,3987.8,3984.5,2.50970288]
[1760124777335,1.92,3987.5,3983.9,2.51005658]
[1760124777635,1.92,3987.8,3985.2,14.5]
[1760124777636,1.92,3987.2,3985.2,14.5]
[1760124777927,4.86471767,3987.9,3985.6,0.6336]
[1760124777928,0.82271767,3987.9,3985.6,0.6336]
[1760124778231,0.39311767,3987.9,3985.8,0.6336]
[1760124778385,0.252,3988.6,3986.5,0.6336]
[1760124778582,0.39315682,3988.1,3985.9,0.2135]
[1760124778784,0.39315682,3988.1,3986.0,15.1336]
[1760124778785,1.92,3987.9,3986.0,15.1336]
[1760124779023,2.3496,3987.8,3984.3,0.2135]
[1760124779225,2.3496,3987.8,3984.4,4.042]
[1760124779226,4.011,3987.7,3984.4,4.042]
[1760124779431,2.50789988,3987.4,3984.5,14.5]
[1760124779723,0.4296,3989.1,3984.6,1.94509662]
[1760124779885,0.39332471,3988.2,3984.7,0.2135]
[1760124780090,1.92,3988.0,3985.6,0.6336]
[1760124780287,1.92,3987.8,3985.8,0.6336]
[1760124780534,1.92,3987.6,3985.9,4.042]
[1760124780688,1.92,3987.8,3985.9,4.042]
[1760124780889,1.92,3987.7,3986.0,0.0250878]
[1760124781127,30.0,3987.4,3984.4,0.2135]
[1760124781341,30.0,3987.0,3984.3,2.091]
[1760124781551,1.92,3986.9,3984.1,18.542]
[1760124781823,0.39319028,3987.4,3984.1,18.542]
[1760124781824,30.0,3986.4,3984.1,4.042]
[1760124781984,4.042,3986.3,3984.2,0.371]
[1760124782189,4.042,3986.3,3984.3,14.5]
[1760124782388,1.92,3985.9,3984.4,2.091]
[1760124782691,1.92,3985.3,3983.3,3.474]
[1760124782911,1.92,3985.0,3983.4,3.474]
[1760124783112,1.92,3984.7,3983.4,3.474]
[1760124783309,0.4296,3985.6,3983.4,3.474]
[1760124783713,30.0,3985.3,3980.7,2.51208829]
[1760124784009,11.92,3985.4,3983.1,6.535]
[1760124784010,1.92,3985.0,3983.1,6.535]
[1760124784233,4.3326,3985.2,3982.8,16.591]
[1760124784234,0.4296,3985.2,3982.8,14.5]
[1760124784437,1.92,3984.8,3982.0,0.056]
[1760124784637,1.92,3984.4,3981.9,4.042]
[1760124784820,1.92,3984.0,3981.9,4.042]
[1760124785022,1.92,3983.6,3981.9,4.042]
[1760124785232,1.92,3983.3,3981.7,2.315]
[1760124785429,1.92,3983.1,3981.7,2.315]
[1760124785733,0.2201,3983.9,3981.7,2.315]
[1760124785734,0.4296,3983.5,3981.7,2.315]
[1760124786099,4.042,3984.0,3981.8,0.6336]
[1760124786499,1.92,3984.2,3982.1,0.6336]
[1760124786747,0.4296,3985.5,3982.8,0.6336]
[1760124787036,0.4296,3985.5,3982.7,0.2135]
[1760124787037,0.4296,3985.5,3983.1,0.6336]
[1760124787198,0.4296,3985.5,3983.2,14.5]
[1760124787397,30.0,3985.4,3983.3,4.042]
[1760124787602,1.92,3985.1,3982.6,0.6356]
[1760124787835,1.92,3984.8,3982.6,0.6356]
[1760124788037,4.043,3984.7,3982.6,15.3491]
[1760124788237,30.0,3984.3,3982.6,0.002]
[1760124788421,1.92,3984.0,3982.6,0.002]
[1760124788627,1.92,3983.6,3982.6,0.002]
[1760124788802,1.92,3983.6,3981.0,0.0008]
[1760124788803,4.43041823,3983.4,3981.0,0.0008]
[1760124789001,1.92,3982.9,3981.0,0.0008]
[1760124789202,30.0,3982.5,3981.0,0.0008]
[1760124789406,1.92,3982.2,3981.0,0.0008]
[1760124789640,0.2201,3981.1,3981.0,0.0008]
[1760124789823,0.2201,3981.1,3978.5,0.2155]
[1760124789824,29.93205905,3980.9,3978.8,2.092]
[1760124790025,4.2631,3981.1,3978.8,2.092]
[1760124790026,1.92,3980.6,3978.8,2.092]
[1760124790221,14.4726,3980.8,3978.8,2.092]
[1760124790222,0.4296,3980.8,3978.8,2.092]
[1760124790458,0.4296,3980.8,3977.3,2.51425237]
[1760124790459,1.92,3980.2,3978.2,4.043]
[1760124790661,4.4726,3980.7,3977.9,6.135]
[1760124790662,1.92,3979.9,3977.9,6.135]
[1760124790850,2.31400407,3979.9,3977.9,6.135]
[1760124791036,1.92,3979.7,3977.1,0.1583]
[1760124791234,1.92,3979.7,3974.3,3.4]
[1760124791235,30.0,3979.4,3976.6,4.043]
[1760124791436,1.92,3979.0,3976.7,14.601]
[1760124791684,0.39400407,3979.9,3976.8,0.2163]
[1760124791978,1.92,3979.8,3976.9,12.64]
[1760124792145,0.6336,3978.9,3971.9,3.8000573]
[1760124792350,30.0,3976.7,3974.1,14.5]
[1760124792567,1.92,3976.4,3972.6,0.058]
[1760124792750,30.0,3976.1,3973.3,2.093]
[1760124792939,1.92,3975.8,3973.3,2.093]
[1760124793137,1.92,3976.1,3973.4,14.7163]
[1760124793476,1.92,3976.9,3973.5,0.2163]
[1760124793636,2.3496,3977.4,3973.6,0.02516609]
[1760124793836,30.0,3977.1,3973.7,0.2163]
[1760124794037,0.4296,3978.2,3974.1,14.5]
[1760124794285,0.4296,3978.2,3975.3,0.6336]
[1760124794286,10.0,3978.0,3975.3,0.6336]
[1760124794442,10.0,3978.0,3975.2,2.51554794]
[1760124794443,0.137,3977.9,3975.5,0.6336]
[1760124794641,30.0,3977.8,3975.6,4.045]
[1760124794861,1.92,3977.5,3975.8,0.6336]
[1760124795055,1.92,3977.6,3975.8,0.6336]
[1760124795282,4.046,3978.3,3975.8,0.6336]
[1760124795450,30.0,3978.1,3975.8,0.6336]
[1760124795793,1.92,3977.6,3975.3,0.6336]
[1760124795970,0.4296,3978.0,3975.7,0.6336]
[1760124796140,10.0,3979.6,3975.8,0.02515217]
[1760124796485,30.0,3979.4,3976.0,0.6336]
[1760124796643,30.0,3979.2,3971.1,0.99999999]
[1760124796989,1.26777657,3977.2,3972.4,2.094]
[1760124797279,1.92,3975.3,3972.5,4.863]
[1760124797596,1.92,3974.8,3970.8,0.1663]
[1760124797771,30.0,3974.5,3970.0,2.2523]
[1760124797938,1.92,3974.2,3970.7,0.916]
[1760124798286,30.0,3973.7,3970.8,14.5]
[1760124798492,4.4987,3975.0,3970.9,8.0464832]
[1760124798641,4.7287,3975.9,3971.0,2.70973993]
[1760124798839,30.0,3975.8,3973.0,0.6336]
[1760124799065,1.92,3975.5,3970.0,0.1583]
[1760124799267,2.51565998,3975.1,3970.1,2.6673]
[1760124799473,3.17680748,3974.6,3970.1,2.6673]
[1760124799690,2.51770775,3971.9,3968.8,0.1663]
[1760124799984,30.0,3971.6,3969.0,3.816]
[1760124800289,1.92,3971.6,3969.3,2.51927604]
[1760124800578,1.92,3971.4,3969.0,3.816]
[1760124800750,1.92,3971.3,3969.0,6.33551625]
[1760124800957,0.39461527,3971.3,3970.0,0.02518891]
[1760124801176,1.92,3972.5,3970.2,0.6336]
[1760124801488,1.92,3972.2,3969.9,0.01671579]
[1760124801688,30.0,3971.9,3969.9,0.01671579]
[1760124801978,11.92,3972.0,3967.2,0.1663]
[1760124801979,0.2187,3970.0,3967.2,0.1663]
[1760124802189,30.0,3969.7,3966.9,0.106]
[1760124802386,30.0,3969.7,3966.5,2.096]
[1760124802387,0.4517,3969.6,3966.5,0.067]
[1760124802589,1.92,3969.3,3966.5,0.067]
[1760124802878,1.92,3969.3,3966.3,0.183]
[1760124802879,1.92,3968.9,3966.3,0.183]
[1760124803085,1.92,3968.9,3964.3,0.183]
[1760124803086,34.5017,3968.8,3964.3,0.183]
[1760124803297,17.059,3968.6,3965.4,0.183]
[1760124803443,1.92,3968.4,3965.5,2.1802175]
[1760124803643,0.4517,3968.8,3966.0,2.52142719]
[1760124803873,1.92,3969.2,3966.3,2.52120006]
[1760124804045,1.234,3972.0,3967.9,0.6336]
[1760124804247,30.6704,3971.9,3968.1,0.6336]
[1760124804483,30.0,3971.6,3969.6,0.002]
[1760124804683,1.92,3971.1,3969.6,0.002]
[1760124804887,22.068,3971.0,3969.6,0.002]
[1760124805190,1.25590137,3973.0,3969.6,0.002]
[1760124805191,10.2187,3974.0,3969.6,0.002]
[1760124805527,0.281,3972.1,3970.0,0.6336]
[1760124805643,0.2187,3973.1,3970.0,0.183]
[1760124805845,30.0,3973.2,3970.0,0.183]
[1760124806144,30.0,3972.9,3970.2,0.6336]
[1760124806346,26.347,3972.7,3969.6,0.02719145]
[1760124806575,30.0,3972.5,3969.6,0.002]
[1760124806858,2.5192026,3969.6,3967.3,0.017]
[1760124807063,31.92,3969.4,3966.8,0.02520923]
[1760124807257,1.92,3969.2,3965.7,1.357]
[1760124807457,1.92,3968.8,3965.7,2.098]
[1760124807669,30.0,3968.4,3965.8,1.348]
[1760124807872,0.39511353,3968.1,3965.8,1.348]
[1760124808186,0.39511353,3968.1,3961.7,0.185]
[1760124808187,30.0,3967.6,3961.7,0.185]
[1760124808396,10.0,3967.7,3961.6,0.13160401]
[1760124808397,1.29498955,3965.8,3961.6,0.13160401]
[1760124808686,1.29498955,3965.8,3959.2,0.185]
[1760124808687,30.0,3964.9,3961.5,0.042]
[1760124808890,1.92,3964.6,3961.6,0.02524232]
[1760124809054,1.92,3964.6,3960.7,6.557]
[1760124809055,30.0,3964.3,3960.8,0.02524742]
[1760124809253,30.0,3964.0,3960.9,2.098]
[1760124809453,10.39557524,3964.1,3960.9,2.098]
[1760124809454,1.92,3963.7,3960.9,2.098]
[1760124809654,0.4517,3964.9,3961.0,0.185]
[1760124809894,1.92,3965.6,3961.7,14.89764732]
[1760124810182,0.84702792,3965.5,3961.9,0.6336]
[1760124810339,0.39532792,3965.5,3962.0,18.69523977]
[1760124810549,30.0,3966.5,3962.1,0.185]
[1760124810843,0.4517,3966.6,3962.2,3.583]
[1760124810844,30.0,3966.1,3962.2,3.583]
[1760124811084,1.92,3965.8,3962.8,2.52344866]
[1760124811243,1.92,3965.6,3962.3,1.483]
[1760124811444,0.4517,3966.0,3962.9,0.185]
[1760124811662,30.0,3965.8,3962.1,0.185]
[1760124811893,1.22704285,3970.1,3962.5,14.89764732]
[1760124812056,30.0,3965.7,3961.1,0.185]
[1760124812261,30.0,3965.4,3960.5,2.569]
[1760124812579,12.476,3965.2,3960.6,0.21024869]
[1760124812760,1.92,3964.9,3960.7,6.562]
[1760124812948,1.92,3964.9,3959.6,1.25121865]
[1760124812949,1.92,3964.9,3960.8,0.185]
[1760124813150,1.92,3964.3,3960.8,0.185]
[1760124813353,1.92,3963.9,3960.8,0.21024742]
[1760124813666,1.92,3963.4,3960.1,0.185]
[1760124813861,1.92,3963.0,3960.2,2.16625124]
[1760124814186,0.4517,3963.5,3960.3,0.185]
[1760124814545,0.6704,3965.6,3961.8,14.89764732]
[1760124814747,0.2187,3966.0,3963.1,0.6336]
[1760124814992,0.2187,3967.2,3964.5,2.52238604]
[1760124815155,0.4517,3967.3,3964.6,0.02522322]
[1760124815358,0.29,3967.7,3964.9,2.5221317]
[1760124815556,2.1,3968.7,3964.7,3.721]
[1760124815557,0.4517,3968.7,3965.6,2.5216865]
[1760124815791,0.35033575,3969.7,3965.6,2.5216865]
[1760124815792,23.487,3969.5,3965.9,0.1256]
[1760124815988,0.4517,3968.7,3966.1,0.6336]
[1760124816285,0.4517,3969.3,3966.3,0.6336]
[1760124816488,0.4517,3969.3,3966.4,0.02521177]
[1760124816810,0.4517,3969.3,3966.2,14.46925308]
[1760124816811,0.4517,3969.3,3967.2,0.6336]
[1760124817086,0.4517,3970.1,3967.4,0.6336]
[1760124817285,0.4517,3970.1,3967.6,0.6336]
[1760124817489,0.58327781,3971.8,3969.2,0.6336]
[1760124817704,0.57080376,3971.9,3969.3,0.02519335]
[1760124817705,0.35210376,3971.9,3969.3,0.02519335]
[1760124817984,0.4517,3971.8,3969.4,0.6336]
[1760124818193,2.6517,3971.7,3967.7,2.5203078]
[1760124818373,12.016,3971.2,3967.8,0.185]
[1760124818572,0.39474779,3971.3,3967.9,6.7936]
[1760124818573,30.0,3971.0,3967.9,6.7936]
[1760124818775,0.39474779,3971.3,3968.6,2.51977907]
[1760124818994,0.39474779,3971.3,3968.7,0.6336]
[1760124818995,23.1287,3971.2,3968.7,0.6336]
[1760124819154,34.059,3971.1,3968.9,0.6336]
[1760124819363,1.92,3970.7,3968.4,0.6336]
[1760124819667,0.39481459,3970.6,3968.6,0.6336]
[1760124819868,0.6704,3971.9,3968.8,3.15325329]
[1760124820082,0.6704,3971.9,3968.8,0.6336]
[1760124820282,2.51562849,3975.2,3968.7,12.726]
[1760124820283,0.39467492,3971.4,3969.4,2.51927243]
[1760124820483,8.94,3973.6,3970.8,2.51836621]
[1760124820706,0.39450804,3973.5,3971.1,0.6336]
[1760124820918,0.39450804,3973.5,3971.3,0.6336]
[1760124821085,23.334,3974.5,3971.5,0.6336]
[1760124821281,0.39440672,3974.3,3971.8,0.6336]
[1760124821515,0.39440672,3974.3,3971.9,13.14268674]
[1760124821680,0.39440672,3974.3,3972.0,0.6336]
[1760124821885,2.51655566,3973.7,3969.4,0.185]
[1760124822130,1.92,3973.2,3969.9,2.51895513]
[1760124822310,1.92,3973.0,3970.0,0.02518891]
[1760124822509,30.0,3972.7,3968.5,6.565]
[1760124822693,30.0,3972.3,3969.9,0.002]
[1760124822883,1.92,3972.0,3969.9,0.002]
[1760124823083,30.0,3971.7,3969.9,0.002]
[1760124823283,1.92,3971.4,3969.9,0.002]
[1760124823489,1.92,3971.1,3969.9,0.002]
[1760124823797,18.414,3971.0,3969.9,0.002]
[1760124823994,1.92,3971.0,3969.9,0.002]
[1760124824209,1.92,3970.8,3969.9,0.002]
[1760124824527,1.92,3970.5,3969.9,0.002]
[1760124824685,2.51870135,3970.3,3969.9,0.002]
[1760124824887,1.92,3970.0,3967.6,2.1]
[1760124825086,30.0,3969.7,3967.7,1.347]
[1760124825331,1.92,3969.8,3967.2,2.211]
[1760124825332,1.92,3969.3,3967.2,2.211]
[1760124825685,1.92,3969.2,3966.5,0.187]
[1760124825881,1.92,3969.2,3966.6,0.164]
[1760124826082,0.4517,3969.6,3966.6,0.164]
[1760124826083,10.0,3969.0,3966.6,0.164]
[1760124826298,4.058,3969.0,3966.6,0.164]
[1760124826503,4.058,3969.0,3966.2,0.185]
[1760124826722,2.52001707,3968.3,3965.7,0.118]
[1760124826921,2.51978027,3968.6,3965.7,0.118]
[1760124826922,4.7,3968.2,3965.7,0.118]
[1760124827096,1.92,3968.4,3966.0,2.5214144]
[1760124827281,0.39497395,3968.5,3965.9,2.52149575]
[1760124827486,0.39497395,3968.5,3965.6,2.1]
[1760124827487,0.4468,3968.9,3966.8,0.6336]
[1760124827688,1.92,3968.5,3965.1,0.187]
[1760124827896,1.92,3968.1,3965.2,4.062]
[1760124828158,11.92,3967.9,3965.3,9.295]
[1760124828464,0.39494551,3968.3,3966.0,2.52141731]
[1760124828679,0.4468,3968.8,3966.2,0.6336]
[1760124828965,0.39474053,3969.2,3966.5,0.6336]
[1760124829164,0.39474053,3969.2,3966.4,0.6336]
[1760124829462,0.39474053,3969.2,3965.1,17.41962025]
[1760124829463,0.4437,3971.2,3967.1,0.6336]
[1760124829670,0.39465938,3970.6,3967.4,2.52054242]
[1760124829864,0.39465938,3970.6,3967.9,0.6336]
[1760124830164,0.3946332,3971.6,3968.8,0.6336]
[1760124830368,30.0,3971.4,3968.3,2.101]
[1760124830569,30.0,3971.2,3968.4,0.6336]
[1760124830770,0.4437,3971.1,3968.5,0.02519843]
[1760124831070,0.4437,3971.1,3968.6,0.6336]
[1760124831255,0.3946332,3971.6,3968.9,0.6336]
[1760124831431,0.3946332,3971.6,3969.0,0.21219526]
[1760124831630,0.3946332,3971.6,3970.0,0.6336]
[1760124831967,10.0,3974.6,3970.2,0.6336]
[1760124831968,0.394577,3972.1,3970.2,0.6336]
[1760124832134,0.838277,3972.1,3970.3,2.641]
[1760124832332,30.0,3972.0,3969.0,0.187]
[1760124832672,30.0,3972.0,3969.1,2.8566]
[1760124832673,1.92,3971.4,3969.1,2.8566]
[1760124832839,1.92,3971.2,3969.3,0.6336]
[1760124833165,1.92,3971.2,3967.0,7.878]
[1760124833166,1.92,3970.8,3968.9,2.1]
[1760124833369,2.3637,3970.7,3967.6,0.187]
[1760124833532,1.92,3970.4,3967.7,2.223]
[1760124833868,0.214,3971.9,3967.7,2.223]
[1760124833869,0.4437,3971.6,3969.1,2.51940914]
[1760124834076,0.4437,3972.4,3969.8,0.6336]
[1760124834239,0.4437,3972.4,3970.0,0.6336]
[1760124834435,0.4437,3972.4,3970.1,2.517]
[1760124834630,0.4437,3972.4,3970.2,0.6336]
[1760124835067,0.4437,3972.9,3970.0,0.187]
[1760124835252,10.39243631,3975.5,3970.0,0.187]
[1760124835253,2.5437,3973.7,3970.7,0.6336]
[1760124835454,2.51517101,3975.9,3971.2,0.6336]
[1760124835455,10.0,3974.8,3971.2,0.6336]
[1760124835660,2.345,3974.4,3971.8,0.6336]
[1760124835863,0.4437,3974.5,3972.0,0.6336]
[1760124836189,1.35388249,3976.9,3971.9,2.1]
[1760124836190,2.144,3975.0,3972.2,0.6336]
[1760124836480,0.4437,3974.9,3972.3,2.639]
[1760124836644,30.0,3974.7,3971.4,0.6336]
[1760124836843,30.0,3974.5,3971.7,0.6336]
[1760124837077,14.3047,3974.6,3971.9,0.6336]
[1760124837078,0.4437,3974.6,3971.9,0.6336]
[1760124837239,0.4437,3974.6,3972.3,0.6336]
[1760124837447,2.1,3975.4,3972.5,0.6336]
[1760124837778,2.1,3975.4,3972.7,3.15072955]
[1760124837952,0.4437,3975.5,3972.8,0.02517116]
[1760124838152,0.4437,3975.5,3973.0,0.6336]
[1760124838474,30.0,3975.4,3973.0,0.6336]
[1760124838682,26.449,3975.3,3973.1,6.183]
[1760124838983,0.39427115,3975.8,3973.2,0.6336]
[1760124839145,0.39427115,3975.8,3973.3,0.6336]
[1760124839341,0.39427115,3975.8,3973.4,14.5]
[1760124839646,1.92,3975.3,3973.6,0.6336]
[1760124839856,0.4437,3975.7,3973.7,0.02516546]
[1760124840271,2.554,3975.6,3973.7,4.079]
[1760124840579,28.93275337,3975.2,3973.8,2.659]
[1760124840782,1.92,3974.9,3972.9,0.6336]
[1760124840952,1.92,3974.7,3972.9,4.077]
[1760124841151,0.39424789,3975.3,3972.9,4.077]
[1760124841478,0.001,3975.8,3973.3,0.6336]
[1760124841678,0.4447,3975.8,3973.5,0.6336]
[1760124841978,30.0,3975.7,3973.7,0.6336]
[1760124842483,0.001,3975.8,3974.0,0.6336]
[1760124842778,0.001,3975.8,3974.2,0.6336]
[1760124842980,0.001,3975.8,3974.4,0.6336]
[1760124843278,0.001,3975.8,3974.6,0.6336]
[1760124843480,0.001,3975.8,3974.7,4.076]
[1760124843780,0.001,3975.8,3973.3,0.6336]
[1760124843985,0.001,3975.8,3973.2,14.687]
[1760124844277,0.4437,3975.7,3973.4,2.099]
[1760124844478,30.0,3975.2,3972.2,0.187]
[1760124844684,30.0,3974.9,3972.9,2.099]
[1760124844848,1.92,3975.0,3972.9,2.099]
[1760124845040,0.4437,3976.1,3973.0,0.84576989]
[1760124845246,0.4437,3976.1,3973.1,10.577]
[1760124845468,0.4437,3976.1,3973.2,0.6336]
[1760124845779,0.4437,3976.9,3974.6,2.51596645]
[1760124845986,0.214,3977.8,3975.3,2.5154817]
[1760124846283,0.6577,3977.8,3974.8,0.6336]
[1760124846495,0.6577,3977.8,3974.7,2.82]
[1760124846496,0.6577,3977.8,3975.2,0.6336]
[1760124846647,0.4437,3976.9,3975.0,4.08]
[1760124846849,0.214,3977.8,3975.0,4.08]
[1760124846850,0.179,3977.5,3975.1,0.6336]
[1760124847145,0.83788279,3976.9,3974.3,0.6336]
[1760124847383,0.4437,3976.2,3974.4,2.098]
[1760124847585,0.39418279,3976.9,3974.5,17.64957652]
[1760124847746,0.39418279,3976.9,3974.5,15.1336]
[1760124848082,0.4437,3978.1,3975.7,0.6336]
[1760124848384,0.4437,3976.8,3973.9,0.6336]
[1760124848583,0.4437,3976.8,3973.8,0.187]
[1760124848584,0.4437,3976.8,3974.3,0.6336]
[1760124848757,0.4437,3977.6,3974.3,0.6336]
[1760124848945,0.4437,3977.6,3974.8,2.51584985]
[1760124849147,0.4437,3977.6,3975.2,0.6336]
[1760124849381,0.4437,3977.6,3975.4,3.14902081]
[1760124849574,0.4437,3977.6,3975.4,0.6336]
[1760124849776,0.4437,3977.6,3975.1,0.6336]
[1760124849777,0.4437,3976.9,3975.1,0.6336]
[1760124849948,0.4437,3976.9,3975.2,4.073]
[1760124850149,1.92,3977.4,3975.3,0.65875533]
[1760124850365,0.4437,3977.7,3975.4,0.0251547]
[1760124850561,0.4437,3977.7,3975.5,0.6336]
[1760124850776,0.4437,3977.0,3975.4,4.071]
[1760124851006,0.4437,3975.7,3973.4,0.187]
[1760124851310,0.4437,3975.7,3973.5,2.219]
[1760124851463,0.288,3976.2,3973.6,0.02516609]
[1760124851663,0.4437,3976.5,3973.6,0.02516609]
[1760124851859,1.92,3975.5,3973.7,4.069]
[1760124852088,17.883,3975.4,3973.7,4.069]
[1760124852287,0.6577,3975.7,3972.6,14.5]
[1760124852288,1.92,3975.1,3972.6,14.5]
[1760124852609,0.4437,3975.3,3972.7,5.462]
[1760124852765,31.92,3975.1,3971.9,0.187]
[1760124852966,1.92,3974.9,3972.2,6.556]
[1760124853161,0.4437,3975.0,3972.3,0.187]
[1760124853395,0.4437,3975.0,3972.4,5.924]
[1760124853396,0.39448603,3974.7,3972.4,5.924]
[1760124853702,0.6577,3975.7,3972.4,5.924]
[1760124854001,1.92,3975.4,3972.8,0.6336]
[1760124854302,0.6577,3975.7,3973.3,0.6336]
[1760124854600,1.92,3974.8,3971.0,0.187]
[1760124854898,0.214,3975.7,3971.3,15.722]
[1760124854899,0.4437,3974.7,3971.3,15.722]
[1760124855098,0.4437,3974.7,3971.4,0.187]
[1760124855307,0.4437,3974.7,3971.5,0.6336]
[1760124855467,0.4437,3974.7,3971.8,0.003]
[1760124855468,1.92,3974.5,3971.8,0.003]
[1760124855797,30.0,3974.0,3971.8,0.003]
[1760124856000,0.4437,3974.6,3972.0,2.5176141]
[1760124856187,2.257,3974.4,3971.8,0.003]
[1760124856394,0.4472,3974.5,3972.2,0.6336]
[1760124856605,2.51536589,3975.6,3972.7,0.6336]
[1760124856606,0.4472,3974.9,3972.7,0.6336]
[1760124856802,0.4472,3974.9,3972.1,4.062]